lending/lending_fUSD_20250913
["ID","MTS","AMOUNT","RATE_DAILY","PERIOD"]
[385359389,1757790799768,-897.14,0.00030958,2]
[385359390,1757790799777,-838.71,0.00030958,2]
[385359391,1757790799787,-778.35,0.00030958,2]
[385359392,1757790799797,-1550.32,0.00030958,2]
[385359393,1757790799806,-1097.98,0.00030958,2]
[385359394,1757790799816,-519.54,0.00030958,2]
[385359395,1757790799825,-400.0,0.00030958,2]
[385359396,1757790799835,-746.12,0.00030958,2]
[385359397,1757790799844,-400.0,0.00030958,2]
[385359398,1757790799854,-812.08,0.00030958,2]
[385359399,1757790799864,-1172.1,0.00030958,2]
[385359400,1757790799873,-400.0,0.00030958,2]
[385359401,1757790799884,-1004.56,0.00030958,2]
[385359402,1757790799893,-406.12,0.00030958,2]
[385359403,1757790799902,-738.83,0.00030958,2]
[385359404,1757790799912,-400.0,0.00030958,2]
[385359405,1757790799921,-1445.07,0.00030958,2]
[385359406,1757790799931,-400.0,0.00030958,2]
[385359407,1757790799940,-681.1,0.00030958,2]
[385359408,1757790799950,-301.54016086,0.00030958,2]
[385359409,1757790799959,-400.0,0.00030958,2]
[385359410,1757790799969,-1822.15,0.00030958,2]
[385359411,1757790799980,-636.43,0.00030958,2]
[385359412,1757790799990,-417.32,0.00030958,2]
[385359413,1757790800001,-465.37396831,0.00030958,2]
[385359414,1757790800011,-1015.89,0.00030958,2]
[385359415,1757790800022,-983.53,0.00030958,2]
[385359416,1757790800033,-722.69,0.00030958,2]
[385359417,1757790800044,-761.25,0.00030958,2]
[385359418,1757790800055,-670.74,0.00030958,2]
[385359419,1757790800064,-400.0,0.00030958,2]
[385359420,1757790800075,-458.09,0.00030958,2]
[385359421,1757790800085,-589.72,0.00030958,2]
[385359422,1757790800096,-411.62,0.00030958,2]
[385359423,1757790800106,-1393.14,0.00030958,2]
[385359424,1757790800115,-422.08,0.00030958,2]
[385359425,1757790800126,-400.0,0.00030958,2]
[385359426,1757790800137,-400.0,0.00030958,2]
[385359427,1757790800147,-1286.51,0.00030958,2]
[385359428,1757790800156,-400.0,0.00030958,2]
[385359429,1757790800166,-400.0,0.00030958,2]
[385359430,1757790800177,-1836.39,0.00030958,2]
[385359431,1757790800186,-806.89,0.00030958,2]
[385359432,1757790800197,-3209.32,0.00030958,2]
[385359433,1757790800206,-1118.88,0.00030958,2]
[385359434,1757790800216,-862.09,0.00030958,2]
[385359435,1757790800226,-2346.72,0.00030958,2]
[385359436,1757790800236,-1033.98,0.00030958,2]
[385359437,1757790800245,-400.0,0.00030958,2]
[385359438,1757790800255,-702.99,0.00030958,2]
[385359439,1757790800264,-1450.08,0.00030958,2]
[385359440,1757790800274,-896.46,0.00030958,2]
[385359441,1757790800283,-524.85,0.00030958,2]
[385359442,1757790800293,-837.65,0.00030958,2]
[385359443,1757790800302,-941.17,0.00030958,2]
[385359444,1757790800312,-872.8,0.00030958,2]
[385359445,1757790800322,-727.17,0.00030958,2]
[385359446,1757790800332,-711.83,0.00030958,2]
[385359447,1757790800341,-765.36,0.00030958,2]
[385359448,1757790800351,-778.2,0.00030958,2]
[385359449,1757790800361,-2033.09,0.00030958,2]
[385359450,1757790800370,-980.63,0.00030958,2]
[385359451,1757790800380,-677.3,0.00030958,2]
[385359452,1757790800389,-538.72,0.00030958,2]
[385359453,1757790800400,-1183.03,0.00030958,2]
[385359454,1757790800409,-722.19,0.00030958,2]
[385359455,1757790800419,-1015.48,0.00030958,2]
[385359456,1757790800429,-599.03,0.00030958,2]
[385359457,1757790800439,-965.24,0.00030958,2]
[385359458,1757790800449,-653.28,0.00030958,2]
[385359459,1757790800460,-513.76875936,0.00030958,2]
[385359460,1757790800470,-974.74,0.00030958,2]
[385359461,1757790800480,-532.11,0.00030958,2]
[385359462,1757790800490,-775.6,0.00030958,2]
[385359463,1757790800503,-400.0,0.00030958,2]
[385359464,1757790800512,-400.0,0.00030958,2]
[385359465,1757790800522,-1047.99,0.00030958,2]
[385359466,1757790800533,-867.54,0.00030958,2]
[385359467,1757790800543,-462.72083164,0.00030958,2]
[385359468,1757790800553,-741.23,0.00030958,2]
[385359469,1757790800563,-603.59,0.00030958,2]
[385359470,1757790800574,-2266.8,0.00030958,2]
[385359471,1757790800585,-835.84,0.00030958,2]
[385359472,1757790800595,-1243.58,0.00030958,2]
[385359473,1757790800605,-526.24,0.00030958,2]
[385359474,1757790800615,-605.54,0.00030958,2]
[385359475,1757790800624,-502.15,0.00030958,2]
[385359476,1757790800634,-495.47,0.00030958,2]
[385359477,1757790800643,-462.88,0.00030958,2]
[385359478,1757790800653,-858.84,0.00030958,2]
[385359479,1757790800663,-2089.21,0.00030958,2]
[385359480,1757790800672,-708.83,0.00030958,2]
[385359481,1757790800682,-1484.39,0.00030958,2]
[385359482,1757790800692,-1139.82,0.00030958,2]
[385359483,1757790800702,-676.37,0.00030958,2]
[385359484,1757790800713,-920.38,0.00030958,2]
[385359485,1757790800722,-785.36,0.00030958,2]
[385359486,1757790800731,-400.0,0.00030958,2]
[385359487,1757790800741,-1042.18,0.00030958,2]
[385359488,1757790800750,-714.23,0.00030958,2]
[385359489,1757790800760,-894.39,0.00030958,2]
[385359490,1757790800770,-647.42,0.00030958,2]
[385359491,1757790800779,-857.85,0.00030958,2]
[385359492,1757790800791,-513.3,0.00030958,2]
[385359493,1757790800800,-924.41,0.00030958,2]
[385359494,1757790800809,-2338.03,0.00030958,2]
[385359495,1757790800819,-1469.88,0.00030958,2]
[385359496,1757790800829,-841.74,0.00030958,2]
[385359497,1757790800839,-722.3,0.00030958,2]
[385359498,1757790800848,-415.27,0.00030958,2]
[385359499,1757790800858,-767.19,0.00030958,2]
[385359500,1757790800867,-814.0,0.00030958,2]
[385359501,1757790800877,-1229.51,0.00030958,2]
[385359502,1757790800887,-844.21,0.00030958,2]
[385359503,1757790800896,-1485.88,0.00030958,2]
[385359504,1757790800906,-449.16,0.00030958,2]
[385359505,1757790800916,-2265.68,0.00030958,2]
[385359506,1757790800925,-865.66,0.00030958,2]
[385359507,1757790800935,-863.57,0.00030958,2]
[385359508,1757790800944,-572.0,0.00030958,2]
[385359509,1757790800957,-2112.49,0.00030958,2]
[385359510,1757790800966,-1107.28,0.00030958,2]
[385359511,1757790800976,-510.21,0.00030958,2]
[385359512,1757790800986,-400.0,0.00030958,2]
[385359513,1757790800995,-1170.47,0.00030958,2]
[385359514,1757790801005,-841.3,0.00030958,2]
[385359515,1757790801015,-1028.51,0.00030958,2]
[385359516,1757790801025,-856.96,0.00030958,2]
[385359517,1757790801036,-208.06084775,0.00030958,2]
[385359518,1757790801046,-906.61,0.00030958,2]
[385359519,1757790801056,-1458.58,0.00030958,2]
[385359520,1757790801065,-1006.96,0.00030958,2]
[385359521,1757790801075,-701.85,0.00030958,2]
[385359522,1757790801086,-4256.1,0.00030958,2]
[385359523,1757790801096,-728.15,0.00030958,2]
[385359524,1757790801105,-400.0,0.00030958,2]
[385359525,1757790801115,-925.96,0.00030958,2]
[385359526,1757790801124,-400.0,0.00030958,2]
[385359527,1757790801134,-445.69,0.00030958,2]
[385359528,1757790801143,-1198.57,0.00030958,2]
[385359529,1757790801153,-2857.69,0.00030958,2]
[385359530,1757790801164,-1974.67,0.00030958,2]
[385359531,1757790801174,-847.13,0.00030958,2]
[385359532,1757790801185,-2990.98,0.00030958,2]
[385359533,1757790801195,-400.0,0.00030958,2]
[385359534,1757790801204,-834.58,0.00030958,2]
[385359535,1757790801215,-2302.98,0.00030958,2]
[385359536,1757790801224,-479.96229757,0.00030958,2]
[385359537,1757790801233,-2111.33,0.00030958,2]
[385359538,1757790801242,-1747.56,0.00030958,2]
[385359539,1757790801252,-466.82,0.00030958,2]
[385359540,1757790801262,-400.0,0.00030958,2]
[385359541,1757790801273,-2233.25,0.00030958,2]
[385359542,1757790801283,-1255.2,0.00030958,2]
[385359543,1757790801293,-400.0,0.00030958,2]
[385359544,1757790801304,-1963.87,0.00030958,2]
[385359545,1757790801314,-694.91,0.00030958,2]
[385359546,1757790801324,-400.0,0.00030958,2]
[385359547,1757790801334,-400.0,0.00030958,2]
[385359548,1757790801344,-1143.85,0.00030958,2]
[385359549,1757790801354,-807.66,0.00030958,2]
[385359550,1757790801364,-400.0,0.00030958,2]
[385359551,1757790801374,-927.88,0.00030958,2]
[385359552,1757790801384,-2263.39,0.00030958,2]
[385359553,1757790801394,-952.59,0.00030958,2]
[385359554,1757790801404,-931.48,0.00030958,2]
[385359555,1757790801414,-400.0,0.00030958,2]
[385359556,1757790801423,-669.04,0.00030958,2]
[385359557,1757790801434,-1333.33,0.00030958,2]
[385359558,1757790801444,-944.31,0.00030958,2]
[385359559,1757790801454,-172.53427415,0.00030958,2]
[385359560,1757790801464,-711.99,0.00030958,2]
[385359561,1757790801474,-1798.63,0.00030958,2]
[385359562,1757790801483,-1030.24,0.00030958,2]
[385359563,1757790801494,-568.52,0.00030958,2]
[385359564,1757790801506,-977.53,0.00030958,2]
[385359565,1757790801516,-1079.08,0.00030958,2]
[385359566,1757790801525,-400.0,0.00030958,2]
[385359567,1757790801535,-923.82,0.00030958,2]
[385359568,1757790801545,-1374.51,0.00030958,2]
[385359569,1757790801555,-539.76,0.00030958,2]
[385359570,1757790801565,-400.0,0.00030958,2]
[385359571,1757790801577,-532.15,0.00030958,2]
[385359572,1757790801586,-707.41,0.00030958,2]
[385359573,1757790801597,-1021.66,0.00030958,2]
[385359574,1757790801607,-796.82,0.00030958,2]
[385359575,1757790801617,-786.29,0.00030958,2]
[385359576,1757790801626,-1683.27,0.00030958,2]
[385359577,1757790801636,-923.85,0.00030958,2]
[385359578,1757790801646,-585.84,0.00030958,2]
[385359579,1757790801655,-1254.84,0.00030958,2]
[385359580,1757790801665,-1026.54,0.00030958,2]
[385359581,1757790801676,-400.0,0.00030958,2]
[385359582,1757790801686,-492.79,0.00030958,2]
[385359583,1757790801698,-2328.06,0.00030958,2]
[385359584,1757790802007,-1854.12,0.00030958,2]
[385359585,1757790802017,-3059.22,0.00030958,2]
[385359586,1757790802026,-1159.49,0.00030958,2]
[385359587,1757790802035,-1000.0,0.00030958,2]
[385359588,1757790802045,-618.58,0.00030958,2]
[385359589,1757790802054,-1262.94,0.00030958,2]
[385359590,1757790802064,-400.0,0.00030958,2]
[385359591,1757790802075,-400.0,0.00030958,2]
[385359592,1757790802086,-666.27,0.00030958,2]
[385359593,1757790802096,-2778.98,0.00030958,2]
[385359594,1757790802106,-1602.35,0.00030958,2]
[385359595,1757790802116,-400.0,0.00030958,2]
[385359596,1757790802127,-426.01663389,0.00030958,2]
[385359597,1757790802137,-438.09,0.00030958,2]
[385359598,1757790802146,-344.99,0.00030958,2]
[385359599,1757790802156,-523.76,0.00030958,2]
[385359600,1757790802164,-734.11,0.00030958,2]
[385359601,1757790802173,-634.16,0.00030958,2]
[385359602,1757790802183,-887.05,0.00030958,2]
[385359603,1757790802194,-333.90243421,0.00030958,2]
[385359604,1757790802203,-942.86,0.00030958,2]
[385359605,1757790802212,-1697.7,0.00030958,2]
[385359606,1757790802222,-400.0,0.00030958,2]
[385359607,1757790802232,-1288.99,0.00030958,2]
[385359608,1757790802243,-1448.36,0.00030958,2]
[385359609,1757790802252,-2431.97,0.00030958,2]
[385359610,1757790802262,-488.5,0.00030958,2]
[385359611,1757790802273,-655.13,0.00030958,2]
[385359612,1757790802283,-693.6,0.00030958,2]
[385359613,1757790802293,-985.78,0.00030958,2]
[385359614,1757790802302,-914.74,0.00030958,2]
[385359615,1757790802312,-1199.53,0.00030958,2]
[385359616,1757790802321,-400.0,0.00030958,2]
[385359617,1757790802331,-3119.56,0.00030958,2]
[385359618,1757790802340,-492.5,0.00030958,2]
[385359619,1757790802350,-400.0,0.00030958,2]
[385359620,1757790802359,-683.66,0.00030958,2]
[385359621,1757790802369,-869.51,0.00030958,2]
[385359622,1757790802379,-1155.29,0.00030958,2]
[385359623,1757790802388,-1010.79,0.00030958,2]
[385359624,1757790802397,-655.9,0.00030958,2]
[385359625,1757790802406,-450.64,0.00030958,2]
[385359626,1757790802416,-1130.65,0.00030958,2]
[385359627,1757790802425,-313.02615686,0.00030958,2]
[385359628,1757790802435,-1727.97,0.00030958,2]
[385359629,1757790802444,-971.87,0.00030958,2]
[385359630,1757790802454,-1049.74,0.00030958,2]
[385359631,1757790802464,-536.28,0.00030958,2]
[385359632,1757790802473,-920.05,0.00030958,2]
[385359633,1757790802482,-807.81,0.00030958,2]
[385359634,1757790802493,-1540.01,0.00030958,2]
[385359635,1757790802504,-400.0,0.00030958,2]
[385359636,1757790802514,-767.61,0.00030958,2]
[385359637,1757790802523,-843.61,0.00030958,2]
[385359638,1757790802532,-798.34,0.00030958,2]
[385359639,1757790802542,-721.19,0.00030958,2]
[385359640,1757790802552,-1507.18,0.00030958,2]
[385359641,1757790802562,-1074.98,0.00030958,2]
[385359642,1757790802571,-1380.97,0.00030958,2]
[385359643,1757790802580,-736.94,0.00030958,2]
[385359644,1757790802590,-8779.55,0.00030958,2]
[385359645,1757790802599,-400.0,0.00030958,2]
[385359646,1757790802609,-400.0,0.00030958,2]
[385359647,1757790802619,-1003.9,0.00030958,2]
[385359648,1757790802628,-594.63,0.00030958,2]
[385359649,1757790802637,-506.79,0.00030958,2]
[385359650,1757790802647,-729.26,0.00030958,2]
[385359651,1757790802656,-649.71,0.00030958,2]
[385359652,1757790802665,-666.01,0.00030958,2]
[385359653,1757790802674,-813.26,0.00030958,2]
[385359654,1757790802684,-752.66,0.00030958,2]
[385359655,1757790802693,-2622.41,0.00030958,2]
[385359656,1757790802702,-851.12,0.00030958,2]
[385359657,1757790802712,-1034.54,0.00030958,2]
[385359658,1757790802721,-745.71,0.00030958,2]
[385359659,1757790802730,-990.05,0.00030958,2]
[385359660,1757790802739,-436.15,0.00030958,2]
[385359661,1757790802749,-202.0,0.0003096,2]
[385359662,1757790802758,-1000.0,0.00030976,2]
[385359663,1757790802767,-25819.85149791,0.00030999,7]
[385359664,1757790802776,-9562.74870584,0.00030999,2]
[385359665,1757790802784,-26560.87533165,0.00030999,7]
[385359666,1757790802793,-4934.66896926,0.00030999,2]
[385359667,1757790802802,-10344403.51683171,0.00031,2]
[385359668,1757790802812,-1001.0,0.00031,8]
[385359669,1757790802821,-5000.0,0.00031,7]
[385359670,1757790802830,-3206.705462,0.00031,2]
[385359671,1757790802839,-2492.142925,0.00031,2]
[385359672,1757790802849,-3896.254989,0.00031,2]
[385359673,1757790802859,-1000.0,0.00031,30]
[385359674,1757790802867,-1000.0,0.00031,30]
[385359675,1757790802879,-1000.0,0.00031,30]
[385359676,1757790802889,-1000.0,0.00031,30]
[385359677,1757790802898,-1000.0,0.00031,30]
[385359678,1757790802907,-1000.0,0.00031,30]
[385359679,1757790802917,-160.0,0.00031,120]
[385359680,1757790802926,-160.0,0.00031,3]
[385359681,1757790802936,-212.99211257,0.00031,120]
[385359682,1757790802946,-212.99211257,0.00031,3]
[385359683,1757790802955,-500.0,0.00031061,2]
[385359684,1757790802965,-186.0,0.00031068,14]
[385359685,1757790802974,-232.41,0.00031095,120]
[385359686,1757790802983,-3206.705462,0.00031107,2]
[385359687,1757790802992,-2492.142925,0.00031107,2]
[385359688,1757790803003,-3896.254989,0.00031107,2]
[385359689,1757790803012,-324.0,0.0003113,2]
[385359690,1757790803021,-640.0,0.00031166,120]
[385359691,1757790803030,-410377.57,0.000312,2]
[385359692,1757790803039,-463289.83,0.000312,2]
[385359693,1757790803048,-295.245,0.00031209,2]
[385359694,1757790803058,-3206.705462,0.00031214,2]
[385359695,1757790803067,-2492.142925,0.00031214,2]
[385359696,1757790803076,-3896.254989,0.00031214,2]
[385359697,1757790803085,-298.57,0.00031223,3]
[385359698,1757790803094,-403.48,0.00031232,2]
[385359699,1757790803104,-400.0,0.00031232,2]
[385359700,1757790803114,-400.0,0.00031232,2]
[385359701,1757790803124,-699.06,0.00031232,2]
[385359702,1757790803134,-888.74,0.00031232,2]
[385359703,1757790803143,-1067.33,0.00031232,2]
[385359704,1757790803153,-494.9,0.00031232,2]
[385359705,1757790803162,-400.0,0.00031232,2]
[385359706,1757790803171,-1011.1,0.00031232,2]
[385359707,1757790803181,-411.04,0.00031232,2]
[385359708,1757790803190,-400.0,0.00031232,2]
[385359709,1757790803200,-436.55,0.00031232,2]
[385359710,1757790803209,-415.46,0.00031232,2]
[385359711,1757790803218,-1222.47,0.00031232,2]
[385359712,1757790803228,-622.37,0.00031232,2]
[385359713,1757790803237,-751.49,0.00031232,2]
[385359714,1757790803246,-512.06,0.00031232,2]
[385359715,1757790803255,-400.0,0.00031232,2]
[385359716,1757790803264,-516.89,0.00031232,2]
[385359717,1757790803272,-572.28,0.00031232,2]
[385359718,1757790803281,-400.0,0.00031232,2]
[385359719,1757790803290,-400.0,0.00031232,2]
[385359720,1757790803299,-400.0,0.00031232,2]
[385359721,1757790803308,-405.34,0.00031232,2]
[385359722,1757790803317,-892.3,0.00031232,2]
[385359723,1757790803327,-400.0,0.00031232,2]
[385359724,1757790803336,-2090.35,0.00031232,2]
[385359725,1757790803344,-445.77,0.00031232,2]
[385359726,1757790803354,-849.51,0.00031232,2]
[385359727,1757790803362,-764.33,0.00031232,2]
[385359728,1757790803372,-812.38,0.00031232,2]
[385359729,1757790803381,-579.38,0.00031232,2]
[385359730,1757790803391,-400.0,0.00031232,2]
[385359731,1757790803400,-547.99242866,0.00031232,2]
[385359732,1757790803409,-471.70462751,0.00031232,2]
[385359733,1757790803418,-400.0,0.00031232,2]
[385359734,1757790803427,-400.0,0.00031232,2]
[385359735,1757790803436,-1141.14,0.00031232,2]
[385359736,1757790803445,-650.0,0.00031232,120]
[385359737,1757790803454,-593.32,0.00031232,2]
[385359738,1757790803463,-400.0,0.00031232,2]
[385359739,1757790803472,-762.02,0.00031232,2]
[385359740,1757790803482,-400.0,0.00031232,2]
[385359741,1757790803492,-633.2,0.00031232,2]
[385359742,1757790803504,-548.72,0.00031232,2]
[385359743,1757790803515,-400.0,0.00031232,2]
[385359744,1757790803524,-400.0,0.00031232,2]
[385359745,1757790803535,-411.96,0.00031232,2]
[385359746,1757790803544,-653.34,0.00031232,2]
[385359747,1757790803553,-400.0,0.00031232,2]
[385359748,1757790803562,-891.73,0.00031232,2]
[385359749,1757790803574,-400.0,0.00031232,2]
[385359750,1757790803583,-598.23,0.00031232,2]
[385359751,1757790803592,-1354.32,0.00031232,2]
[385359752,1757790803601,-518.98,0.00031232,2]
[385359753,1757790803610,-925.24,0.00031232,2]
[385359754,1757790803620,-722.44,0.00031232,2]
[385359755,1757790803629,-400.0,0.00031232,2]
[385359756,1757790803642,-506.66,0.00031232,2]
[385359757,1757790803651,-1909.11,0.00031232,2]
[385359758,1757790803663,-886.75,0.00031232,2]
[385359759,1757790803672,-411.5953003,0.00031232,2]
[385359760,1757790803681,-400.0,0.00031232,2]
[385359761,1757790803691,-1138.1,0.00031232,2]
[385359762,1757790803700,-400.0,0.00031232,2]
[385359763,1757790803709,-400.0,0.00031232,2]
[385359764,1757790803718,-400.0,0.00031232,2]
[385359765,1757790803727,-400.0,0.00031232,2]
[385359766,1757790803736,-576.48,0.00031232,2]
[385359767,1757790803746,-400.0,0.00031232,2]
[385359768,1757790803755,-400.0,0.00031232,2]
[385359769,1757790803763,-712.7,0.00031232,2]
[385359770,1757790803773,-400.0,0.00031232,2]
[385359771,1757790803782,-159.99882805,0.00031232,2]
[385359772,1757790803791,-400.0,0.00031232,2]
[385359773,1757790803800,-2782.51,0.00031232,2]
[385359774,1757790803809,-400.0,0.00031232,2]
[385359775,1757790803818,-400.0,0.00031232,2]
[385359776,1757790803827,-749.03,0.00031232,2]
[385359777,1757790803836,-476.93,0.00031232,2]
[385359778,1757790803846,-652.17,0.00031232,2]
[385359779,1757790803855,-1095.32,0.00031232,2]
[385359780,1757790803864,-778.01,0.00031232,2]
[385359781,1757790803873,-450.34,0.00031232,2]
[385359782,1757790803882,-623.72,0.00031232,2]
[385359783,1757790803891,-232.41,0.00031232,120]
[385359784,1757790803900,-400.0,0.00031232,2]
[385359785,1757790803910,-522.52,0.00031232,2]
[385359786,1757790803919,-1025.68,0.00031232,2]
[385359787,1757790803928,-1547.47,0.00031232,2]
[385359788,1757790803937,-400.0,0.00031232,2]
[385359789,1757790803946,-400.0,0.00031232,2]
[385359790,1757790803955,-452.08,0.00031232,2]
[385359791,1757790803964,-400.0,0.00031232,2]
[385359792,1757790803973,-400.0,0.00031232,2]
[385359793,1757790803982,-954.04,0.00031232,2]
[385359794,1757790803991,-972.47,0.00031232,2]
[385359795,1757790804000,-440.6,0.00031232,2]
[385359796,1757790804009,-400.0,0.00031232,2]
[385359797,1757790804018,-400.0,0.00031232,2]
[385359798,1757790804027,-1107.3,0.00031232,2]
[385359799,1757790804037,-1360.89,0.00031232,2]
[385359800,1757790804046,-438.49,0.00031232,2]
[385359801,1757790804055,-511.89,0.00031232,2]
[385359802,1757790804065,-875.02,0.00031232,2]
[385359803,1757790804074,-441.06,0.00031232,2]
[385359804,1757790804085,-540.34,0.00031232,2]
[385359805,1757790804095,-432.57,0.00031232,2]
[385359806,1757790804106,-605.1,0.00031232,2]
[385359807,1757790804117,-979.03,0.00031232,2]
[385359808,1757790804126,-639.66,0.00031232,2]
[385359809,1757790804135,-743.92,0.00031232,2]
[385359810,1757790804145,-549.77,0.00031232,2]
[385359811,1757790804154,-400.0,0.00031232,2]
[385359812,1757790804164,-867.52,0.00031232,2]
[385359813,1757790804174,-757.51,0.00031232,2]
[385359814,1757790804185,-400.0,0.00031232,2]
[385359815,1757790804195,-1369.33,0.00031232,2]
[385359816,1757790804205,-976.5,0.00031232,2]
[385359817,1757790804215,-714.21,0.00031232,2]
[385359818,1757790804227,-1200.51,0.00031232,2]
[385359819,1757790804237,-429.54,0.00031232,2]
[385359820,1757790804248,-931.9,0.00031232,2]
[385359821,1757790804368,-767.06,0.00031232,2]
[385359822,1757790804378,-522.36,0.00031232,2]
[385359823,1757790804387,-464.29,0.00031232,2]
[385359824,1757790804396,-400.0,0.00031232,2]
[385359825,1757790804405,-1050.24,0.00031232,2]
[385359826,1757790804414,-712.0,0.00031232,2]
[385359827,1757790804423,-770.1,0.00031232,2]
[385359828,1757790804432,-1340.61,0.00031232,2]
[385359829,1757790804441,-744.56,0.00031232,2]
[385359830,1757790804450,-503.78,0.00031232,2]
[385359831,1757790804459,-933.78,0.00031232,2]
[385359832,1757790804468,-917.05,0.00031232,2]
[385359833,1757790804478,-601.03,0.00031232,2]
[385359834,1757790804487,-408.67,0.00031232,2]
[385359835,1757790804500,-1166.06,0.00031232,2]
[385359836,1757790804510,-744.95,0.00031232,2]
[385359837,1757790804521,-962.63,0.00031232,2]
[385359838,1757790804530,-944.97,0.00031232,2]
[385359839,1757790804539,-697.23,0.00031232,2]
[385359840,1757790804547,-1128.5,0.00031232,2]
[385359841,1757790804557,-1287.15,0.00031232,2]
[385359842,1757790804566,-281.3571578,0.00031232,2]
[385359843,1757790804575,-1140.31,0.00031232,2]
[385359844,1757790804584,-883.84,0.00031232,2]
[385359845,1757790804593,-1121.16,0.00031232,2]
[385359846,1757790804602,-400.0,0.00031232,2]
[385359847,1757790804611,-400.0,0.00031232,2]
[385359848,1757790804620,-513.88,0.00031232,2]
[385359849,1757790804629,-766.79,0.00031232,2]
[385359850,1757790804638,-836.28,0.00031232,2]
[385359851,1757790804647,-400.0,0.00031232,2]
[385359852,1757790804656,-1062.97,0.00031232,2]
[385359853,1757790804665,-701.46,0.00031232,2]
[385359854,1757790804675,-240.068457,0.00031232,2]
[385359855,1757790804684,-381.03671298,0.00031232,2]
[385359856,1757790804693,-1010.43,0.00031232,2]
[385359857,1757790804702,-618.9,0.00031232,2]
[385359858,1757790804711,-740.73,0.00031232,2]
[385359859,1757790804720,-400.0,0.00031232,2]
[385359860,1757790804729,-617.0,0.00031232,2]
[385359861,1757790804738,-955.87,0.00031232,2]
[385359862,1757790804747,-400.0,0.00031232,2]
[385359863,1757790804756,-1394.15,0.00031232,2]
[385359864,1757790804765,-645.46,0.00031232,2]
[385359865,1757790804775,-475.16,0.00031232,2]
[385359866,1757790804784,-400.0,0.00031232,2]
[385359867,1757790804793,-400.0,0.00031232,2]
[385359868,1757790804802,-1201.25,0.00031232,2]
[385359869,1757790804811,-1420.48,0.00031232,2]
[385359870,1757790804821,-436.7,0.00031232,2]
[385359871,1757790804830,-886.97,0.00031232,2]
[385359872,1757790804839,-695.44,0.00031232,2]
[385359873,1757790804848,-869.21,0.00031232,2]
[385359874,1757790804858,-1459.76,0.00031232,2]
[385359875,1757790804867,-563.58,0.00031232,2]
[385359876,1757790804876,-460.53608183,0.00031232,2]
[385359877,1757790804885,-565.26,0.00031232,2]
[385359878,1757790804894,-1134.89,0.00031232,2]
[385359879,1757790804903,-404.56,0.00031232,2]
[385359880,1757790804911,-734.93,0.00031232,2]
[385359881,1757790804921,-1149.23,0.00031232,2]
[385359882,1757790804930,-400.0,0.00031232,2]
[385359883,1757790804939,-1190.66,0.00031232,2]
[385359884,1757790804948,-656.39,0.00031232,2]
[385359885,1757790804957,-1130.2,0.00031232,2]
[385359886,1757790804966,-914.37,0.00031232,2]
[385359887,1757790804975,-869.45,0.00031232,2]
[385359888,1757790804983,-400.0,0.00031232,2]